bitfinex-derivatives/quotes_SOLF0:USTF0_20250520
["timestamp","ask_amount","ask_price","bid_price","bid_amount"]
[1747700822097,1.925,168.15,168.03,0.04410076]
[1747700822304,72.22,168.14,167.98,72.2]
[1747700822607,72.22,168.14,167.98,88.76664002]
[1747700823110,0.04293863,168.08,168.04,0.04105135]
[1747700823609,0.04293863,168.08,168.04,2.12985135]
[1747700823809,0.04293863,168.08,168.04,4.22555135]
[1747700824110,0.04293863,168.08,168.04,5.135e-05]
[1747700824609,5.9479,168.07,168.04,5.135e-05]
[1747700824809,0.04293863,168.08,168.04,5.135e-05]
[1747700825710,5.9481,168.07,168.04,5.135e-05]
[1747700825911,0.04293863,168.08,168.04,5.135e-05]
[1747700826312,72.28293863,168.08,168.04,5.135e-05]
[1747700826506,5.9486,168.05,168.04,5.135e-05]
[1747700827811,5.9511,167.98,167.93,1.9669]
[1747700828006,75.98,168.0,167.91,1.9395]
[1747700828410,77.9693,168.04,167.82,514.08]
[1747700828611,77.9693,168.04,167.86,16.56664002]
[1747700828812,77.9693,168.04,167.87,5.8598]
[1747700829013,0.04411233,167.97,167.93,0.04232165]
[1747700829213,0.04411233,167.97,167.93,0.04299265]
[1747700829816,0.04411233,167.97,167.73,9.76620513]
[1747700830015,514.22,167.96,167.83,5.9563]
[1747700830218,514.22,167.96,167.82,16.56664002]
[1747700830518,76.0,167.98,167.86,16.56664002]
[1747700830719,76.0,167.99,167.9,5.9538]
[1747700830921,0.04195924,167.96,167.9,5.9538]
[1747700831121,0.04195924,167.96,167.87,76.0]
[1747700831626,5.9496,168.02,167.9,16.60814967]
[1747700831811,16.60247037,168.0,167.8,92.60247037]
[1747700832013,76.0,167.99,167.81,3.9207]
[1747700832214,5.9542,167.9,167.84,5.9559]
[1747700832718,0.04285926,167.89,167.85,0.0396762]
[1747700834124,5.99715926,167.89,167.85,0.0396762]
[1747700834420,0.04285926,167.89,167.85,0.0396762]
[1747700835523,0.04285926,167.89,167.85,76.0596762]
[1747700836019,0.04285926,167.89,167.86,5.9552]
[1747700836213,0.04285926,167.89,167.85,76.0596762]
[1747700836411,0.04285926,167.89,167.85,0.0396762]
[1747700836820,0.04285926,167.89,167.85,5.9950762]
[1747700837018,0.04285926,167.89,167.85,0.0396762]
[1747700837224,0.04285926,167.89,167.88,5.9546]
[1747700837418,0.04285926,167.89,167.85,0.0396762]
[1747700838225,0.04285926,167.89,167.86,5.955]
[1747700838726,0.04285926,167.89,167.85,0.0396762]
[1747700839724,0.04285926,167.89,167.88,5.9546]
[1747700840126,0.04285926,167.89,167.85,0.0396762]
[1747700840321,0.04285926,167.89,167.87,5.9547]
[1747700840515,0.04285926,167.89,167.85,0.0396762]
[1747700841915,532.81177037,168.04,167.85,0.0396762]
[1747700842121,5.9513,167.98,167.88,16.60247037]
[1747700842320,76.06,168.03,167.89,78.0659]
[1747700842516,76.06,168.03,167.95,5.952]
[1747700842732,76.06,168.03,167.9,1.9548]
[1747700842924,0.03768098,167.98,167.95,0.04079002]
[1747700843121,5.9518,167.96,167.95,0.04079002]
[1747700847730,5.9518,167.96,167.95,9.002e-05]
[1747700848034,5.96,167.96,167.85,1.9811]
[1747700848234,1.9061,167.95,167.85,1.9811]
[1747700848426,5.9526,167.94,167.85,1.9811]
[1747700848828,76.06,167.98,167.91,5.9535]
[1747700849029,0.03836081,167.96,167.93,0.04251002]
[1747700849228,5.99026081,167.96,167.93,0.04251002]
[1747700850229,0.03836081,167.96,167.93,0.04251002]
[1747700850536,0.03836081,167.96,167.94,5.9524]
[1747700850730,0.03836081,167.96,167.93,0.04251002]
[1747700851334,0.03836081,167.96,167.93,5.99521002]
[1747700851829,0.03836081,167.96,167.95,5.9521]
[1747700852134,0.03836081,167.96,167.93,0.04251002]
[1747700852734,0.03836081,167.96,167.94,5.9522]
[1747700852930,0.03836081,167.96,167.93,0.04251002]
[1747700854537,0.03836081,167.96,167.95,5.9521]
[1747700854733,76.06,168.0,167.93,0.04251002]
[1747700854933,76.06,168.06,167.94,76.06]
[1747700855136,76.06,168.06,167.95,3.9327]
[1747700855634,82.0085,168.06,167.95,3.9327]
[1747700855840,0.04258995,168.02,167.99,0.03850491]
[1747700856340,0.04258995,168.02,168.01,5.95]
[1747700856540,76.06,168.09,167.99,0.03850491]
[1747700856838,76.04,168.11,167.99,76.07850491]
[1747700857041,76.04,168.11,167.99,76.04]
[1747700857435,5.9471,168.1,167.99,76.04]
[1747700857630,0.03994852,168.06,168.03,0.04281919]
[1747700857933,5.9468,168.1,168.06,5.9479]
[1747700858439,1.9906,168.13,168.04,76.22]
[1747700858633,5.9479,168.07,167.99,10.21179518]
[1747700858834,0.03813031,168.05,168.01,0.03873684]
[1747700859238,0.03813031,168.05,168.01,5.98833684]
[1747700859432,0.03813031,168.05,168.01,0.03873684]
[1747700860827,5.98693031,168.05,168.01,0.03873684]
[1747700861228,0.03813031,168.05,168.01,0.03873684]
[1747700861436,5.9496,168.02,168.01,0.03873684]
[1747700861830,5.9496,168.02,167.94,2.34174349]
[1747700861831,76.23813031,168.05,167.94,2.34174349]
[1747700862032,76.2,168.05,167.94,2.34174349]
[1747700862531,5.9502,168.01,167.96,5.9516]
[1747700862832,0.0402696,168.0,167.97,0.04408748]
[1747700863036,5.9908696,168.0,167.97,0.04408748]
[1747700863238,0.0402696,168.0,167.97,0.04408748]
[1747700864138,5.9906696,168.0,167.97,0.04408748]
[1747700864339,0.0402696,168.0,167.97,0.04408748]
[1747700864837,80.2509,168.09,167.97,0.04408748]
[1747700865037,80.2509,168.09,167.95,92.78964388]
[1747700865339,5.9483,168.06,168.01,5.9497]
[1747700865638,80.2509,168.09,167.96,2.11449948]
[1747700865838,80.2509,168.09,168.01,0.04045688]
[1747700866031,0.04313043,168.04,168.01,0.04045688]
[1747700866233,76.24313043,168.04,168.01,0.04045688]
[1747700866428,0.04313043,168.04,168.01,0.04045688]
[1747700867141,5.9496,168.02,168.01,0.04045688]
[1747700868443,5.9493,168.03,168.01,0.04045688]
[1747700869337,5.9496,168.02,168.01,0.04045688]
[1747700869834,76.2,168.02,167.94,2.11673626]
[1747700870740,0.03963387,168.0,167.96,0.04507056]
[1747700870941,5.9514,167.98,167.96,0.04507056]
[1747700871140,0.03963387,168.0,167.96,0.04507056]
[1747700873140,0.03963387,168.0,167.97,5.951]
[1747700873644,0.03963387,168.0,167.99,5.9507]
[1747700874243,76.2,168.06,167.97,2.0815]
[1747700874743,76.2,168.06,168.03,5.9492]
[1747700874941,76.2,168.06,167.97,2.0815]
[1747700875139,0.04257084,168.03,168.02,5.9496]
[1747700875347,0.03998862,168.04,168.01,0.04094198]
[1747700875543,0.03998862,168.04,168.01,1.99114198]
[1747700876042,0.03998862,168.04,168.02,5.9493]
[1747700876240,0.03998862,168.04,168.01,0.04094198]
[1747700876845,0.03998862,168.04,168.03,5.9493]
[1747700877346,0.03998862,168.04,168.01,0.04094198]
[1747700878748,5.98918862,168.04,168.01,0.04094198]
[1747700881347,0.03998862,168.04,168.01,0.04094198]
[1747700881950,0.03998862,168.04,168.03,5.9493]
[1747700882444,0.03998862,168.04,168.01,0.04094198]
[1747700883750,0.03998862,168.04,168.02,5.9494]
[1747700884150,0.03998862,168.04,168.01,0.04094198]
[1747700886551,0.03998862,168.04,168.02,5.9495]
[1747700886748,0.03998862,168.04,168.01,0.04094198]
[1747700887149,5.9496,168.02,168.01,0.04094198]
[1747700888353,5.9493,168.03,168.01,0.04094198]
[1747700888651,76.23998862,168.04,168.01,0.04094198]
[1747700889054,5.9493,168.03,168.01,0.04094198]
[1747700889549,5.9496,168.02,168.01,0.04094198]
[1747700892758,5.9496,168.02,168.01,4.198e-05]
[1747700894362,80.3896,168.02,168.01,4.198e-05]
[1747700895453,5.9493,168.03,168.01,4.198e-05]
[1747700895659,0.03998862,168.04,168.01,4.198e-05]
[1747700896058,0.03998862,168.04,168.03,5.9493]
[1747700896464,91.44530849,168.1,168.02,2.0677]
[1747700896653,80.387,168.1,168.06,5.948]
[1747700896857,74.44,168.14,168.02,2.0677]
[1747700897060,11.05830849,168.15,168.02,2.0677]
[1747700897460,0.03851152,168.1,168.07,0.03921327]
[1747700897758,0.03851152,168.1,168.09,5.9471]
[1747700898068,0.03851152,168.1,168.07,0.03921327]
[1747700900361,0.03851152,168.1,168.08,5.9472]
[1747700900564,0.03851152,168.1,168.07,0.03921327]
[1747700900770,0.03851152,168.1,168.08,5.9475]
[1747700901069,0.03851152,168.1,168.07,0.03921327]
[1747700901470,0.03851152,168.1,168.09,5.9471]
[1747700902169,0.03851152,168.1,168.07,0.03921327]
[1747700903872,0.03851152,168.1,168.07,5.98691327]
[1747700904569,0.03851152,168.1,168.08,5.9475]
[1747700905070,0.03851152,168.1,168.07,0.03921327]
[1747700905272,0.03851152,168.1,168.08,5.9475]
[1747700905474,0.03851152,168.1,168.07,0.03921327]
[1747700905771,0.03851152,168.1,168.09,5.9471]
[1747700905971,2.0396,168.18,168.08,74.4]
[1747700906872,5.9444,168.17,168.13,5.9454]
[1747700907073,0.03902816,168.15,168.13,5.9454]
[1747700907275,0.03902816,168.15,168.11,0.0427029]
[1747700907471,5.98412816,168.15,168.11,5.9890029]
[1747700908078,0.03902816,168.15,168.12,5.9461]
[1747700909379,0.03902816,168.15,168.11,5.9891029]
[1747700910180,0.03902816,168.15,168.12,5.946]
[1747700910385,0.03902816,168.15,168.11,0.0427029]
[1747700910883,0.03902816,168.15,168.12,5.9458]
[1747700911180,0.03902816,168.15,168.11,0.0427029]
[1747700912381,5.98412816,168.15,168.11,0.0427029]
[1747700912681,0.03902816,168.15,168.11,0.0427029]
[1747700912976,0.03902816,168.15,168.12,5.946]
[1747700914083,0.03902816,168.15,168.11,5.9890029]
[1747700914379,0.03902816,168.15,168.11,0.0427029]
[1747700914582,0.03902816,168.15,168.12,5.946]
[1747700914778,0.03902816,168.15,168.11,0.0427029]
[1747700914976,0.03902816,168.15,168.11,74.4227029]
[1747700915180,0.03902816,168.15,168.13,5.9455]
[1747700915481,0.03902816,168.15,168.11,74.4227029]
[1747700916282,0.03902816,168.15,168.11,0.0427029]
[1747700916471,0.03902816,168.15,168.11,5.9889029]
[1747700916876,0.03902816,168.15,168.11,0.0427029]
[1747700917585,0.03902816,168.15,168.12,5.946]
[1747700917779,0.03902816,168.15,168.11,0.0427029]
[1747700918785,0.03902816,168.15,168.13,5.9455]
[1747700918990,0.03902816,168.15,168.11,0.0427029]
[1747700919380,0.03902816,168.15,168.13,5.9454]
[1747700919580,0.03902816,168.15,168.11,0.0427029]
[1747700921386,0.03902816,168.15,168.14,5.9454]
[1747700922187,0.03902816,168.15,168.13,5.9457]
[1747700922484,0.03902816,168.15,168.11,0.0427029]
[1747700923886,5.9461,168.12,168.11,0.0427029]
[1747700924490,12.11658397,168.14,168.03,73.08]
[1747700925082,12.11658397,168.14,167.99,75.20558368]
[1747700925389,0.04323273,168.08,168.05,0.0407971]
[1747700925783,5.9482,168.06,168.05,0.0407971]
[1747700925989,6.00323273,168.08,167.99,2.12558368]
[1747700926180,3.951,168.05,167.97,2.36318009]
[1747700926385,73.08,168.04,167.97,2.36318009]
[1747700926586,3.951,168.05,167.97,2.36318009]
[1747700926781,73.08,168.04,167.97,2.36318009]
[1747700926986,0.03787522,168.02,168.01,5.95]
[1747700927288,73.08,168.11,168.01,73.08]
[1747700928389,0.04373642,168.08,168.04,0.04057729]
[1747700928793,0.04373642,168.08,168.05,5.9483]
[1747700929187,0.04373642,168.08,168.04,0.04057729]
[1747700930092,5.9486,168.05,168.04,0.04057729]
[1747700930487,0.04373642,168.08,168.04,0.04057729]
[1747700930689,5.9483,168.06,168.04,0.04057729]
[1747700930988,0.04373642,168.08,168.04,0.04057729]
[1747700932193,5.99133642,168.08,168.04,0.04057729]
[1747700932382,0.04373642,168.08,168.04,0.04057729]
[1747700934195,5.9486,168.05,168.04,0.04057729]
[1747700934995,5.9498,168.02,167.97,73.1]
[1747700935596,73.1,168.05,167.93,79.2494]
[1747700935793,1.9,168.04,167.93,79.2494]
[1747700935990,5.9507,167.99,167.97,0.04081348]
[1747700936494,0.03984124,168.0,167.97,0.04081348]
[1747700936495,5.951,167.98,167.97,0.04081348]
[1747700938592,73.13984124,168.0,167.89,73.1]
[1747700938799,73.1,168.0,167.89,79.0542]
[1747700938994,73.1,168.0,167.89,5.9542]
[1747700939191,73.1,168.0,167.87,1.8906]
[1747700939589,0.03885133,167.95,167.92,0.04313738]
[1747700940200,73.12,167.94,167.86,2.36318009]
[1747700940397,1.9887,167.93,167.86,2.36318009]
[1747700941000,1.9887,167.93,167.81,2.36318009]
[1747700941208,0.0394744,167.89,167.86,0.04307235]
[1747700941407,73.1794744,167.89,167.86,0.04307235]
[1747700941705,5.9549,167.87,167.86,0.04307235]
[1747700942000,10.20048397,167.88,167.68,35.49993382]
[1747700942194,5.9576,167.8,167.73,5.9846]
[1747700942396,10.20048397,167.88,167.73,5.9846]
[1747700942702,73.14,167.84,167.73,11.9442]
[1747700942902,0.0404911,167.8,167.73,5.9846]
[1747700943094,0.0404911,167.8,167.76,5.9588]
[1747700943290,0.0404911,167.8,167.73,5.9846]
[1747700943699,5.9979911,167.8,167.74,5.9595]
[1747700944004,0.0404911,167.8,167.74,5.9595]
[1747700944506,5.9979911,167.8,167.74,5.9595]
[1747700944899,0.0404911,167.8,167.73,11.9444]
[1747700945099,5.9578,167.79,167.73,5.9846]
[1747700945298,73.16,167.79,167.69,73.14]
[1747700945503,73.16,167.79,167.69,75.0601]
[1747700946004,0.04031905,167.76,167.69,1.9201]
[1747700946303,5.9593,167.75,167.69,1.9201]
[1747700946506,5.9593,167.75,167.7,5.9608]
[1747700947000,0.04031905,167.76,167.69,1.9201]
[1747700947402,0.04031905,167.76,167.7,73.18]
[1747700947704,0.04031905,167.76,167.74,5.9592]
[1747700948198,0.04031905,167.76,167.75,5.9592]
[1747700948604,0.04031905,167.76,167.7,73.18]
[1747700949198,73.18,167.81,167.71,0.04363563]
[1747700949899,514.8,167.82,167.71,0.04363563]
[1747700950099,73.18,167.83,167.7,73.18]
[1747700950305,0.04418281,167.78,167.75,0.03790754]
[1747700950506,0.04418281,167.78,167.77,5.9585]
[1747700951113,0.04418281,167.78,167.75,0.03790754]
[1747700951309,2.7244,167.89,167.75,0.03790754]
[1747700951609,73.18,167.85,167.7,73.18]
[1747700951804,5.9566,167.83,167.72,16.62619201]
[1747700952206,5.957,167.82,167.77,5.9584]
[1747700952407,0.04418753,167.81,167.78,0.04344308]
[1747700952605,73.18,167.88,167.78,0.03776535]
[1747700952808,5.9552,167.87,167.82,5.9564]
[1747700953002,5.9552,167.87,167.78,3.9697]
[1747700953305,5.9552,167.87,167.82,5.9565]
[1747700953511,0.04242042,167.86,167.83,0.04265989]
[1747700953910,5.99782042,167.86,167.83,0.04265989]
[1747700954212,0.04242042,167.86,167.83,0.04265989]
[1747700954604,5.956,167.84,167.83,0.04265989]
[1747700954809,0.04242042,167.86,167.83,0.04265989]
[1747700955306,5.956,167.84,167.83,0.04265989]
[1747700955613,73.2,167.85,167.78,3.9697]
[1747700955815,5.9578,167.79,167.75,5.9591]
[1747700956413,5.9581,167.78,167.75,0.04009896]
[1747700956717,0.04365775,167.79,167.75,0.04009896]
[1747700957108,0.04365775,167.79,167.78,5.9581]
[1747700957418,0.04365775,167.79,167.75,0.04009896]
[1747700958120,0.04365775,167.79,167.77,5.9585]
[1747700958321,0.04365775,167.79,167.75,0.04009896]
[1747700958813,5.9582,167.78,167.75,0.04009896]
[1747700959021,0.04365775,167.79,167.75,0.04009896]
[1747700959712,5.9588,167.76,167.75,0.04009896]
[1747700961318,5.9603,167.72,167.68,5.9715]
[1747700961522,89.82619201,167.77,167.64,73.2]
[1747700962020,5.9614,167.69,167.65,5.9626]
[1747700962319,0.04550585,167.69,167.65,0.04485902]
[1747700963121,5.962,167.68,167.65,0.04485902]
[1747700963616,6.00710585,167.69,167.65,0.04485902]
[1747700963821,0.04550585,167.69,167.65,0.04485902]
[1747700964221,0.04550585,167.69,167.65,6.00745902]
[1747700964717,0.04550585,167.69,167.66,5.9623]
[1747700965018,0.04550585,167.69,167.65,0.04485902]
[1747700965216,73.22,167.75,167.65,73.26485902]
[1747700966223,0.04503697,167.72,167.65,89.89105103]
[1747700966518,73.22,167.77,167.67,0.03814776]
[1747700966824,73.22,167.77,167.73,5.9596]
[1747700967224,73.22,167.8,167.73,5.9596]
[1747700967424,73.22,167.8,167.74,0.04468115]
[1747700967425,0.03969892,167.78,167.74,0.04468115]
[1747700968121,5.99809892,167.78,167.74,0.04468115]
[1747700968517,0.03969892,167.78,167.74,0.04468115]
[1747700969227,73.22,167.85,167.74,0.04468115]
[1747700969422,73.22,167.85,167.74,2.0636]
[1747700969621,5.9581,167.78,167.74,8.023]
[1747700969926,73.22,167.85,167.74,2.0636]
[1747700970119,0.04475016,167.81,167.78,0.04004441]
[1747700970728,5.9574,167.8,167.78,0.04004441]
[1747700971023,0.04475016,167.81,167.78,0.04004441]
[1747700971420,5.9578,167.79,167.78,0.04004441]
[1747700974529,0.04475016,167.81,167.78,0.04004441]
[1747700975117,0.04475016,167.81,167.78,5.99804441]
[1747700975322,0.04475016,167.81,167.78,0.04004441]
[1747700975930,73.22,167.84,167.78,0.04004441]
[1747700976226,79.1761,167.84,167.78,0.04004441]
[1747700977032,5.99562718,167.83,167.78,0.04004441]
[1747700977622,0.03922718,167.83,167.78,0.04004441]
[1747700978026,0.03922718,167.83,167.79,5.9575]
[1747700978229,0.03922718,167.83,167.78,0.04004441]
[1747700979233,5.9572,167.81,167.78,0.04004441]
[1747700980025,0.03922718,167.83,167.78,0.04004441]
[1747700980434,0.03922718,167.83,167.79,5.9575]
[1747700980635,0.03922718,167.83,167.78,0.04004441]
[1747700981032,5.957,167.82,167.78,5.99804441]
[1747700981931,0.03922718,167.83,167.78,0.04004441]
[1747700982537,5.9578,167.79,167.78,0.04004441]
[1747700983638,5.9571,167.81,167.78,0.04004441]
[1747700984134,0.03922718,167.83,167.78,0.04004441]
[1747700984334,72.73922718,167.83,167.78,0.04004441]
[1747700984536,5.9577,167.8,167.78,0.04004441]
[1747700985437,5.9578,167.79,167.78,0.04004441]
[1747700987428,0.03922718,167.83,167.78,0.04004441]
[1747700987628,72.7,167.82,167.78,0.04004441]
[1747700988136,5.9578,167.79,167.78,0.04004441]
[1747700989143,5.9578,167.79,167.78,4.441e-05]
[1747700989543,5.9599,167.73,167.72,2.11208484]
[1747700990744,5.9603,167.72,167.71,0.04115329]
[1747700990939,0.04157042,167.74,167.67,3.12680684]
[1747700991245,72.7,167.73,167.67,3.12680684]
[1747700991641,5.9617,167.68,167.67,3.12680684]
[1747700993145,5.962,167.67,167.66,0.04032763]
[1747700994042,72.72,167.68,167.56,2.0757]
[1747700994536,5.9641,167.62,167.58,5.9652]
[1747700994739,5.9641,167.62,167.55,3.12680684]
[1747700995141,0.04130935,167.6,167.57,0.03917339]
[1747700995341,0.04519647,167.6,167.57,0.04082153]
[1747700995649,0.04519647,167.6,167.58,5.965]
[1747700996243,0.04519647,167.6,167.57,0.04082153]
[1747700996448,5.9652,167.58,167.57,0.04082153]
[1747700997551,5.9649,167.59,167.57,0.04082153]
[1747700998044,5.9652,167.58,167.57,0.04082153]
[1747700998950,5.965,167.59,167.57,0.04082153]
[1747700999151,0.04519647,167.6,167.57,0.04082153]
[1747700999749,0.04519647,167.6,167.58,5.9649]
[1747700999944,0.04519647,167.6,167.57,0.04082153]
[1747701000254,587.98,167.67,167.57,0.04082153]
[1747701000556,5.9633,167.64,167.57,0.04082153]
[1747701000855,587.98,167.67,167.57,0.04082153]
[1747701001149,0.04552201,167.64,167.58,72.76]
[1747701001359,72.76,167.71,167.59,4.007428]
[1747701001561,72.76,167.71,167.59,3.9648]
[1747701002351,0.0391168,167.67,167.63,0.04238766]
[1747701002552,5.9647,167.6,167.56,5.9657]
[1747701002856,72.76,167.68,167.54,72.76]
[1747701003051,72.76,167.71,167.55,1.902]
[1747701003365,72.76,167.72,167.55,1.902]
[1747701003554,0.04414116,167.65,167.62,0.04516766]
[1747701003759,0.03772545,167.65,167.62,0.04516766]
[1747701004156,0.03772545,167.65,167.63,5.9634]
[1747701004356,0.03772545,167.65,167.62,0.04516766]
[1747701004861,72.78,167.71,167.62,0.04516766]
[1747701005252,5.9627,167.66,167.62,6.00896766]
[1747701005457,72.78,167.72,167.62,0.04516766]
[1747701005655,72.78,167.72,167.63,3.9981]
[1747701005852,0.03826695,167.69,167.65,0.03965022]
[1747701009062,5.9623,167.67,167.65,0.03965022]
[1747701009360,0.03826695,167.69,167.65,0.03965022]
[1747701011266,0.03826695,167.69,167.65,6.00205022]
[1747701011469,0.03826695,167.69,167.65,0.03965022]
[1747701011660,5.9624,167.66,167.65,0.03965022]
[1747701012559,5.9622,167.67,167.65,0.03965022]
[1747701012869,0.03826695,167.69,167.65,0.03965022]
[1747701013559,72.72,167.74,167.65,0.03965022]
[1747701013759,0.8858,167.79,167.68,5.9614]
[1747701013760,5.9602,167.73,167.68,5.9614]
[1747701013961,5.9602,167.73,167.69,2.0901]
[1747701014269,526.49423864,167.83,167.71,5.9606]
[1747701014466,72.72,167.82,167.7,74.778]
[1747701014771,0.04363946,167.79,167.75,0.04242245]
[1747701014962,11.03423864,167.83,167.75,72.76242245]
[1747701015162,11.03423864,167.83,167.75,0.04242245]
[1747701015370,5.9588,167.76,167.75,0.04242245]
[1747701018071,5.99947886,167.77,167.75,0.04242245]
[1747701018268,0.04087886,167.77,167.75,0.04242245]
[1747701018664,5.9588,167.76,167.75,0.04242245]
[1747701020671,5.99947886,167.77,167.75,0.04242245]
[1747701020862,0.04087886,167.77,167.75,0.04242245]
[1747701021867,5.99947886,167.77,167.75,0.04242245]
[1747701022166,72.68,167.83,167.75,0.04242245]
[1747701022368,5.957,167.82,167.77,5.9584]
[1747701022763,5.957,167.82,167.75,72.68]
[1747701023165,0.03933681,167.8,167.77,0.04054849]
[1747701025166,72.71933681,167.8,167.77,0.04054849]
[1747701025367,5.9581,167.78,167.77,0.04054849]
[1747701025569,0.03933681,167.8,167.77,0.04054849]
[1747701025769,5.9581,167.78,167.77,0.04054849]
[1747701027075,5.9606,167.71,167.7,2.058]
[1747701027870,5.9606,167.71,167.67,72.68]
[1747701028066,0.04356373,167.72,167.68,0.03937567]
[1747701028271,0.03951723,167.72,167.69,8.09216746]
[1747701028470,0.03951723,167.72,167.69,2.13116746]
[1747701029178,5.99981723,167.72,167.69,2.13116746]
[1747701029478,0.03951723,167.72,167.69,2.13116746]
[1747701029773,0.03951723,167.72,167.69,8.09216746]
[1747701029977,0.03951723,167.72,167.69,2.13116746]
[1747701030280,0.03951723,167.72,167.69,8.09236746]
[1747701030471,0.03951723,167.72,167.69,2.13116746]
[1747701030978,5.961,167.7,167.69,2.13116746]
[1747701031181,5.961,167.7,167.69,0.04106746]
[1747701033883,78.641,167.7,167.69,0.04106746]
[1747701034881,78.641,167.7,167.64,2.0763]
[1747701034882,5.9625,167.66,167.63,2.0771]
[1747701035783,6.00022301,167.66,167.63,2.11657899]
[1747701036185,0.03772301,167.66,167.63,2.11657899]
[1747701037185,6.00022301,167.66,167.63,2.11657899]
[1747701037586,0.03772301,167.66,167.63,2.11657899]
[1747701037891,10.22648379,167.77,167.63,2.11657899]
[1747701038078,10.22648379,167.77,167.63,2.0771]
[1747701038079,72.7,167.76,167.63,2.0771]
[1747701038279,72.7,167.75,167.63,2.0771]
[1747701038690,5.9602,167.73,167.68,5.9614]
[1747701038982,0.04159028,167.72,167.69,0.04341969]
[1747701039185,5.9586,167.77,167.69,0.04341969]
[1747701039376,72.62,167.79,167.69,0.04341969]
[1747701039891,5.9585,167.77,167.73,5.9599]
[1747701040092,72.62,167.79,167.7,2.004]
[1747701040389,0.04558058,167.76,167.73,0.03900875]
[1747701040998,0.04558058,167.76,167.74,5.9594]
[1747701041394,0.04558058,167.76,167.73,0.03900875]
[1747701041594,0.04558058,167.76,167.73,5.99870875]
[1747701041804,0.04558058,167.76,167.73,0.03900875]
[1747701042200,0.04558058,167.76,167.75,5.9592]
[1747701042405,0.04558058,167.76,167.73,0.03900875]
[1747701042601,5.9595,167.74,167.73,0.03900875]
[1747701042795,0.04558058,167.76,167.68,2.1057713]
[1747701043197,5.9613,167.69,167.68,2.1057713]
[1747701043592,0.9666,167.77,167.68,2.1057713]
[1747701043794,0.03967037,167.74,167.71,0.04103973]
[1747701044999,0.03967037,167.74,167.73,5.9599]
[1747701045195,5.958,167.79,167.71,0.04103973]
[1747701045599,78.5575,167.8,167.71,0.04103973]
[1747701046094,0.04335311,167.77,167.76,5.9587]
[1747701046500,0.04335311,167.77,167.75,0.0395912]
[1747701047195,0.04335311,167.77,167.76,5.9588]
[1747701047600,0.04335311,167.77,167.75,0.0395912]
[1747701048098,5.9588,167.76,167.75,0.0395912]
[1747701048912,5.96,167.76,167.67,2.36568411]
[1747701049100,11.27788379,167.76,167.67,2.36568411]
[1747701049299,5.9613,167.7,167.67,2.36568411]
[1747701049811,6.00411182,167.7,167.67,2.40602886]
[1747701050308,5.9613,167.69,167.67,2.40602886]
[1747701050508,0.04281182,167.7,167.67,2.40602886]
[1747701050906,5.9617,167.68,167.67,2.40602886]
[1747701051103,0.04281182,167.7,167.61,2.0061]
[1747701051303,82.82648379,167.72,167.57,2.36568411]
[1747701051502,5.9636,167.63,167.58,5.9652]
[1747701051703,72.6,167.65,167.57,2.36568411]
[1747701052008,5.9646,167.6,167.57,2.36568411]
[1747701052308,72.6,167.6,167.57,2.27598411]
[1747701052503,5.967,167.53,167.52,4.73315745]
[1747701053107,5.9679,167.51,167.48,6.3065594]
[1747701053612,78.5682,167.5,167.48,6.34677341]
[1747701054103,72.6,167.5,167.48,6.34677341]
[1747701054903,78.5683,167.5,167.48,6.34677341]
[1747701055299,72.6,167.5,167.48,0.04021401]
[1747701055500,72.6,167.5,167.37,5.42122105]
[1747701056113,5.9666,167.55,167.37,15.64770484]
[1747701056308,72.64,167.54,167.37,15.64770484]
[1747701056506,0.04103934,167.48,167.45,0.04504872]
[1747701056708,515.26,167.56,167.45,72.68504872]
[1747701056907,515.26,167.56,167.46,4.1044]
[1747701057107,7.38525534,167.59,167.56,5.9658]
[1747701057317,7.38525534,167.59,167.5,72.64]
[1747701057811,7.38525534,167.59,167.58,5.9652]
[1747701058005,1.08205534,167.59,167.58,5.9652]
[1747701058205,0.0394072,167.6,167.59,5.9649]
[1747701058610,72.66,167.68,167.57,0.04371405]
[1747701058807,72.66,167.68,167.56,2.0584]
[1747701058808,72.66,167.68,167.6,5.9645]
[1747701059014,72.66,167.68,167.56,2.0584]
[1747701059717,0.04244503,167.64,167.6,0.04482883]
[1747701061907,72.66,167.73,167.6,72.70482883]
[1747701062102,72.66,167.73,167.62,16.66231848]